[Event "Late-Titled-Tuesday-Blitz-March-19-2024"]
[Site "Chess.com"]
[Date "2024.03.19"]
[Round "8"]
[White "Korchmar_Vasiliy"]
[Black "FredddieCroderg"]
[Result "1-0"]
[WhiteElo "2717"]
[BlackElo "2320"]
[TimeControl "180+1"]
[EndTime "15:27:53 PDT"]
[Termination "Korchmar_Vasiliy won on time"]

1. e4 {[%clk 0:03:00.9]} 1... c6 {[%clk 0:02:59.7]} 2. d4 {[%clk 0:02:59.8]}
2... d5 {[%clk 0:02:59.5]} 3. exd5 {[%clk 0:03:00.2]} 3... cxd5 {[%clk
0:02:59.6]} 4. Bd3 {[%clk 0:03:00.8]} 4... Nc6 {[%clk 0:02:59.4]} 5. c3 {[%clk
0:03:01.3]} 5... Qc7 {[%clk 0:02:59.6]} 6. h3 {[%clk 0:02:58.7]} 6... g6 {[%clk
0:02:57.1]} 7. Nf3 {[%clk 0:02:58.8]} 7... Bf5 {[%clk 0:02:56.9]} 8. O-O {[%clk
0:02:58.6]} 8... Nf6 {[%clk 0:02:55.6]} 9. Re1 {[%clk 0:02:57.5]} 9... Bxd3
{[%clk 0:02:54.5]} 10. Qxd3 {[%clk 0:02:57.6]} 10... Bg7 {[%clk 0:02:54.6]} 11.
Nbd2 {[%clk 0:02:54.9]} 11... O-O {[%clk 0:02:54.6]} 12. Nb3 {[%clk 0:02:55.1]}
12... b6 {[%clk 0:02:52.9]} 13. Be3 {[%clk 0:02:45.6]} 13... Ne4 {[%clk
0:02:52.5]} 14. Rac1 {[%clk 0:02:42.6]} 14... Qb7 {[%clk 0:02:47.7]} 15. Nbd2
{[%clk 0:02:35.9]} 15... f5 {[%clk 0:02:27.4]} 16. Bf4 {[%clk 0:02:36.2]} 16...
Rac8 {[%clk 0:02:20.4]} 17. Ng5 {[%clk 0:02:29.9]} 17... Qd7 {[%clk 0:02:10.8]}
18. f3 {[%clk 0:02:18.4]} 18... Nxg5 {[%clk 0:02:05.9]} 19. Bxg5 {[%clk
0:02:19.3]} 19... e5 {[%clk 0:02:05]} 20. dxe5 {[%clk 0:02:18.3]} 20... Nxe5
{[%clk 0:02:02.1]} 21. Qa6 {[%clk 0:02:09.1]} 21... d4 {[%clk 0:01:47]} 22. Nb3
{[%clk 0:01:39.4]} 22... dxc3 {[%clk 0:01:41.4]} 23. bxc3 {[%clk 0:01:40.3]}
23... Nc4 {[%clk 0:01:04.3]} 24. Re7 {[%clk 0:01:33.9]} 24... Qd6 {[%clk
0:00:55.2]} 25. Qxa7 {[%clk 0:01:27.3]} 25... Bf6 {[%clk 0:00:43.6]} 26. Bxf6
{[%clk 0:01:27.1]} 26... Qxf6 {[%clk 0:00:43.4]} 27. Rce1 {[%clk 0:01:06.8]}
27... Ra8 {[%clk 0:00:37.7]} 28. Qb7 {[%clk 0:01:05.6]} 28... Nd6 {[%clk
0:00:27.1]} 29. Qd5+ {[%clk 0:01:00.3]} 29... Nf7 {[%clk 0:00:26.4]} 30. Nd4
{[%clk 0:00:53.3]} 30... Rad8 {[%clk 0:00:23]} 31. Qb7 {[%clk 0:00:52.5]} 31...
f4 {[%clk 0:00:14.9]} 32. R1e6 {[%clk 0:00:41]} 32... Qh4 {[%clk 0:00:13.8]} 33.
Qxb6 {[%clk 0:00:40]} 33... Rb8 {[%clk 0:00:10.4]} 34. Rb7 {[%clk 0:00:40.6]}
34... Rxb7 {[%clk 0:00:09.8]} 35. Qxb7 {[%clk 0:00:41.5]} 35... Rd8 {[%clk
0:00:08.2]} 36. Qe4 {[%clk 0:00:38.8]} 36... Rb8 {[%clk 0:00:06.4]} 37. Re8+
{[%clk 0:00:38.5]} 37... Rxe8 {[%clk 0:00:06.6]} 38. Qxe8+ {[%clk 0:00:39.4]}
38... Kg7 {[%clk 0:00:06.7]} 39. a4 {[%clk 0:00:28]} 39... Ng5 {[%clk
0:00:06.1]} 40. Ne6+ {[%clk 0:00:17.5]} 40... Nxe6 {[%clk 0:00:05.4]} 41. Qxe6
{[%clk 0:00:18.4]} 41... Kh6 {[%clk 0:00:04.4]} 42. Qe5 {[%clk 0:00:16.4]} 42...
g5 {[%clk 0:00:01.7]} 43. Qf6+ {[%clk 0:00:10.7]} 43... Kh5 {[%clk 0:00:01.5]}
44. Qf7+ {[%clk 0:00:11.4]} 44... Kh6 {[%clk 0:00:01.1]} 45. Qe6+ {[%clk
0:00:12.1]} 45... Kh5 {[%clk 0:00:01.4]} 46. Qg4+ {[%clk 0:00:12.3]} 46... Qxg4
{[%clk 0:00:01.7]} 47. hxg4+ {[%clk 0:00:12.8]} 1-0

[Event "Late-Titled-Tuesday-Blitz-March-19-2024"]
[Site "Chess.com"]
[Date "2024.03.19"]
[Round "8"]
[White "FaustinoOro"]
[Black "RodokininEV"]
[Result "1/2-1/2"]
[WhiteElo "2855"]
[BlackElo "2686"]
[TimeControl "180+1"]
[EndTime "15:27:53 PDT"]
[Termination "Game drawn by repetition"]

1. e4 {[%clk 0:03:00.9]} 1... c5 {[%clk 0:02:59.9]} 2. Nf3 {[%clk 0:03:00.1]}
2... Nc6 {[%clk 0:03:00.5]} 3. Bb5 {[%clk 0:02:56.5]} 3... g6 {[%clk 0:03:00.6]}
4. O-O {[%clk 0:02:54.7]} 4... Bg7 {[%clk 0:03:00.4]} 5. Bxc6 {[%clk 0:02:54.5]}
5... dxc6 {[%clk 0:02:59.9]} 6. d3 {[%clk 0:02:54.2]} 6... Nf6 {[%clk
0:02:58.9]} 7. h3 {[%clk 0:02:54.4]} 7... Nd7 {[%clk 0:02:58.3]} 8. Nbd2 {[%clk
0:02:54]} 8... e5 {[%clk 0:02:38]} 9. a4 {[%clk 0:02:53.1]} 9... a5 {[%clk
0:02:34.6]} 10. Nc4 {[%clk 0:02:52.5]} 10... O-O {[%clk 0:02:34.4]} 11. Ne1
{[%clk 0:02:34]} 11... b6 {[%clk 0:02:30.8]} 12. b3 {[%clk 0:02:31.4]} 12... Ba6
{[%clk 0:02:27.2]} 13. Bb2 {[%clk 0:02:31.1]} 13... Qe7 {[%clk 0:02:23.4]} 14.
f4 {[%clk 0:02:12.6]} 14... Bxc4 {[%clk 0:02:18.8]} 15. bxc4 {[%clk 0:02:11.9]}
15... exf4 {[%clk 0:02:13.8]} 16. Bxg7 {[%clk 0:02:10.3]} 16... Kxg7 {[%clk
0:02:14.7]} 17. Rxf4 {[%clk 0:02:10.6]} 17... Qe5 {[%clk 0:02:06.5]} 18. Rf1
{[%clk 0:02:08]} 18... Qd4+ {[%clk 0:02:02.5]} 19. Kh1 {[%clk 0:02:00.7]} 19...
Rae8 {[%clk 0:02:03.4]} 20. Nf3 {[%clk 0:01:57.4]} 20... Qc3 {[%clk 0:01:59.4]}
21. Rb1 {[%clk 0:01:53.6]} 21... Qf6 {[%clk 0:01:45.8]} 22. Qd2 {[%clk
0:01:50.3]} 22... Qd6 {[%clk 0:01:41.4]} 23. Qc3+ {[%clk 0:01:45.9]} 23... Kg8
{[%clk 0:01:40.2]} 24. Nh2 {[%clk 0:01:34.8]} 24... h5 {[%clk 0:01:36.8]} 25.
Nf3 {[%clk 0:01:34.4]} 25... Re7 {[%clk 0:01:27.7]} 26. Qd2 {[%clk 0:01:14]}
26... Qf6 {[%clk 0:01:22]} 27. c3 {[%clk 0:01:05.8]} 27... Rfe8 {[%clk
0:01:18.8]} 28. e5 {[%clk 0:00:55.2]} 28... Nxe5 {[%clk 0:01:04.5]} 29. Nxe5
{[%clk 0:00:54.3]} 29... Qxe5 {[%clk 0:01:05.4]} 30. Rxb6 {[%clk 0:00:54.2]}
30... Qe2 {[%clk 0:00:58.5]} 31. Qxe2 {[%clk 0:00:49.8]} 31... Rxe2 {[%clk
0:00:59.4]} 32. Rxc6 {[%clk 0:00:50.2]} 32... Ra2 {[%clk 0:00:56.8]} 33. Rxc5
{[%clk 0:00:47]} 33... Ree2 {[%clk 0:00:55.1]} 34. Rg1 {[%clk 0:00:32.3]} 34...
Rxa4 {[%clk 0:00:53.5]} 35. Rc8+ {[%clk 0:00:32.4]} 35... Kg7 {[%clk 0:00:53.4]}
36. c5 {[%clk 0:00:33]} 36... Rc2 {[%clk 0:00:47]} 37. d4 {[%clk 0:00:25.4]}
37... Rxc3 {[%clk 0:00:45.3]} 38. Rd1 {[%clk 0:00:24.7]} 38... Ra2 {[%clk
0:00:40.7]} 39. d5 {[%clk 0:00:21.2]} 39... Rcc2 {[%clk 0:00:39.3]} 40. Rg1
{[%clk 0:00:20.3]} 40... a4 {[%clk 0:00:39.3]} 41. d6 {[%clk 0:00:19.2]} 41...
Rd2 {[%clk 0:00:34.3]} 42. Rc7 {[%clk 0:00:19.2]} 42... a3 {[%clk 0:00:33.1]}
43. d7 {[%clk 0:00:19.4]} 43... Rac2 {[%clk 0:00:31]} 44. c6 {[%clk 0:00:17.7]}
44... a2 {[%clk 0:00:30]} 45. Rc8 {[%clk 0:00:16.5]} 45... Rxg2 {[%clk
0:00:20.4]} 46. Rg8+ {[%clk 0:00:08.3]} 46... Kh6 {[%clk 0:00:13.6]} 47. Ra1
{[%clk 0:00:05.8]} 47... Rh2+ {[%clk 0:00:12.1]} 48. Kg1 {[%clk 0:00:06.2]}
48... Rhg2+ {[%clk 0:00:11.5]} 49. Kh1 {[%clk 0:00:06.2]} 49... Rh2+ {[%clk
0:00:11.3]} 50. Kg1 {[%clk 0:00:06.7]} 50... Rhg2+ {[%clk 0:00:10.6]} 51. Kh1
{[%clk 0:00:07.1]} 1/2-1/2

[Event "Late-Titled-Tuesday-Blitz-March-19-2024"]
[Site "Chess.com"]
[Date "2024.03.19"]
[Round "8"]
[White "expii"]
[Black "chessamical"]
[Result "1/2-1/2"]
[WhiteElo "2200"]
[BlackElo "2269"]
[TimeControl "180+1"]
[EndTime "15:27:56 PDT"]
[Termination "Game drawn by repetition"]

1. e4 {[%clk 0:03:00.9]} 1... e6 {[%clk 0:02:59.1]} 2. d4 {[%clk 0:03:00.4]}
2... d5 {[%clk 0:02:59.1]} 3. e5 {[%clk 0:02:54.6]} 3... c5 {[%clk 0:02:58.1]}
4. c3 {[%clk 0:02:54.3]} 4... Nc6 {[%clk 0:02:58.4]} 5. Nf3 {[%clk 0:02:50.5]}
5... Bd7 {[%clk 0:02:57]} 6. Be2 {[%clk 0:02:46.9]} 6... b6 {[%clk 0:02:30.9]}
7. O-O {[%clk 0:02:39.9]} 7... Nge7 {[%clk 0:02:30.9]} 8. Nbd2 {[%clk
0:02:27.4]} 8... Nf5 {[%clk 0:02:30.8]} 9. Nb3 {[%clk 0:02:10.3]} 9... a5 {[%clk
0:02:06.4]} 10. a4 {[%clk 0:02:05.8]} 10... cxd4 {[%clk 0:02:05.3]} 11. cxd4
{[%clk 0:01:55]} 11... Rc8 {[%clk 0:01:51.3]} 12. Be3 {[%clk 0:01:38.2]} 12...
Nb4 {[%clk 0:01:42.7]} 13. Bd3 {[%clk 0:01:26]} 13... Nxd3 {[%clk 0:01:30.1]}
14. Qxd3 {[%clk 0:01:26.9]} 14... Be7 {[%clk 0:00:34.1]} 15. Rfc1 {[%clk
0:01:19.1]} 15... O-O {[%clk 0:00:33.7]} 16. Nbd2 {[%clk 0:00:56.3]} 16... Rxc1+
{[%clk 0:00:26.9]} 17. Rxc1 {[%clk 0:00:54.9]} 17... Bxa4 {[%clk 0:00:26.3]} 18.
b3 {[%clk 0:00:53.3]} 18... Bd7 {[%clk 0:00:22.8]} 19. Bf4 {[%clk 0:00:48.5]}
19... Qb8 {[%clk 0:00:20.5]} 20. g4 {[%clk 0:00:43.9]} 20... Nh4 {[%clk
0:00:20]} 21. Ng5 {[%clk 0:00:23.6]} 21... Bxg5 {[%clk 0:00:13.5]} 22. Bxg5
{[%clk 0:00:24.5]} 22... Ng6 {[%clk 0:00:13.1]} 23. h4 {[%clk 0:00:23.5]} 23...
h6 {[%clk 0:00:12.6]} 24. Be3 {[%clk 0:00:18.7]} 24... Nxh4 {[%clk 0:00:11.8]}
25. f3 {[%clk 0:00:15.8]} 25... Qd8 {[%clk 0:00:11.8]} 26. Kf2 {[%clk 0:00:03]}
26... f6 {[%clk 0:00:12.1]} 27. exf6 {[%clk 0:00:02.9]} 27... Qxf6 {[%clk
0:00:11.7]} 28. Qe2 {[%clk 0:00:03]} 28... Ng6 {[%clk 0:00:08.4]} 29. Rh1 {[%clk
0:00:03.5]} 29... Nf4 {[%clk 0:00:08.2]} 30. Bxf4 {[%clk 0:00:03.7]} 30... Qxf4
{[%clk 0:00:08.1]} 31. Qe3 {[%clk 0:00:03.9]} 31... Qxe3+ {[%clk 0:00:08.1]} 32.
Kxe3 {[%clk 0:00:04.8]} 32... b5 {[%clk 0:00:07.3]} 33. f4 {[%clk 0:00:05.3]}
33... a4 {[%clk 0:00:07.5]} 34. bxa4 {[%clk 0:00:05.4]} 34... bxa4 {[%clk
0:00:07.9]} 35. Nf3 {[%clk 0:00:06.3]} 35... Ra8 {[%clk 0:00:06.7]} 36. Ne5
{[%clk 0:00:06.7]} 36... Be8 {[%clk 0:00:06.9]} 37. Ra1 {[%clk 0:00:06.7]} 37...
a3 {[%clk 0:00:07.2]} 38. Kd2 {[%clk 0:00:06.2]} 38... g5 {[%clk 0:00:07.1]} 39.
fxg5 {[%clk 0:00:05.8]} 39... hxg5 {[%clk 0:00:07.4]} 40. Kc3 {[%clk 0:00:06.4]}
40... Kg7 {[%clk 0:00:07.2]} 41. Kb4 {[%clk 0:00:04.7]} 41... Kf6 {[%clk
0:00:07.6]} 42. Rxa3 {[%clk 0:00:03.8]} 42... Rxa3 {[%clk 0:00:07.5]} 43. Kxa3
{[%clk 0:00:04.7]} 43... Bg6 {[%clk 0:00:06.9]} 44. Kb4 {[%clk 0:00:04.5]} 44...
Bc2 {[%clk 0:00:07.2]} 45. Kc5 {[%clk 0:00:03.7]} 45... Bd1 {[%clk 0:00:07.7]}
46. Kd6 {[%clk 0:00:03.1]} 46... Be2 {[%clk 0:00:08]} 47. Nd7+ {[%clk
0:00:02.5]} 47... Kf7 {[%clk 0:00:06.9]} 48. Ne5+ {[%clk 0:00:02.8]} 48... Kf6
{[%clk 0:00:07.2]} 49. Nd7+ {[%clk 0:00:03.1]} 49... Kf7 {[%clk 0:00:07.6]} 50.
Ne5+ {[%clk 0:00:03.4]} 50... Kf6 {[%clk 0:00:08.2]} 1/2-1/2

[Event "Late-Titled-Tuesday-Blitz-March-19-2024"]
[Site "Chess.com"]
[Date "2024.03.19"]
[Round "8"]
[White "dawid498"]
[Black "ContrVersia"]
[Result "1/2-1/2"]
[WhiteElo "2712"]
[BlackElo "2916"]
[TimeControl "180+1"]
[EndTime "15:27:57 PDT"]
[Termination "Game drawn by repetition"]

1. e4 {[%clk 0:03:00.9]} 1... c5 {[%clk 0:02:54.4]} 2. Nf3 {[%clk 0:03:01.3]}
2... a6 {[%clk 0:02:54.2]} 3. c4 {[%clk 0:02:59.5]} 3... Nc6 {[%clk 0:02:53.5]}
4. d4 {[%clk 0:02:40.9]} 4... cxd4 {[%clk 0:02:54.4]} 5. Nxd4 {[%clk 0:02:40.9]}
5... e5 {[%clk 0:02:55.3]} 6. Nb3 {[%clk 0:02:37.7]} 6... Nf6 {[%clk 0:02:55]}
7. Nc3 {[%clk 0:02:38.1]} 7... a5 {[%clk 0:02:55.4]} 8. Bd3 {[%clk 0:02:22.4]}
8... a4 {[%clk 0:02:55.2]} 9. Nd2 {[%clk 0:02:22.7]} 9... Qa5 {[%clk 0:02:53.4]}
10. O-O {[%clk 0:02:19.9]} 10... Bc5 {[%clk 0:02:47.4]} 11. Nd5 {[%clk
0:01:53.2]} 11... d6 {[%clk 0:02:47.2]} 12. Rb1 {[%clk 0:01:46.2]} 12... Be6
{[%clk 0:02:44.5]} 13. b4 {[%clk 0:01:34.7]} 13... Nxb4 {[%clk 0:02:41.2]} 14.
Nxb4 {[%clk 0:01:21.8]} 14... Bxb4 {[%clk 0:02:39.9]} 15. a3 {[%clk 0:01:22.5]}
15... Bxd2 {[%clk 0:02:34.1]} 16. Bxd2 {[%clk 0:01:22.4]} 16... Qc7 {[%clk
0:02:34.2]} 17. Rb4 {[%clk 0:01:19.1]} 17... Bd7 {[%clk 0:02:23.2]} 18. f4
{[%clk 0:01:15.2]} 18... Bc6 {[%clk 0:02:20.3]} 19. Qe2 {[%clk 0:00:57.8]} 19...
Nd7 {[%clk 0:02:15.9]} 20. f5 {[%clk 0:00:46.2]} 20... Nc5 {[%clk 0:02:15.7]}
21. Bc2 {[%clk 0:00:44]} 21... f6 {[%clk 0:02:14.1]} 22. Kh1 {[%clk 0:00:37.1]}
22... Qf7 {[%clk 0:01:59]} 23. Be1 {[%clk 0:00:32.4]} 23... g5 {[%clk
0:01:55.9]} 24. Bf2 {[%clk 0:00:28.5]} 24... h5 {[%clk 0:01:48.8]} 25. Rd1
{[%clk 0:00:28.6]} 25... Qe7 {[%clk 0:01:46.4]} 26. Rbb1 {[%clk 0:00:16.4]}
26... h4 {[%clk 0:01:45.6]} 27. h3 {[%clk 0:00:15.1]} 27... Kf7 {[%clk
0:01:45.3]} 28. Rd2 {[%clk 0:00:14.5]} 28... Rag8 {[%clk 0:01:44.9]} 29. Rbd1
{[%clk 0:00:14.9]} 29... g4 {[%clk 0:01:43.5]} 30. Rxd6 {[%clk 0:00:14.5]} 30...
Nd7 {[%clk 0:01:01.6]} 31. Re6 {[%clk 0:00:13.9]} 31... Qxa3 {[%clk 0:00:59.2]}
32. Rxc6 {[%clk 0:00:14.3]} 32... gxh3 {[%clk 0:00:42.6]} 33. Rxd7+ {[%clk
0:00:13.8]} 33... Ke8 {[%clk 0:00:43.1]} 34. Rcc7 {[%clk 0:00:05.1]} 34... Qc1+
{[%clk 0:00:35.2]} 35. Bd1 {[%clk 0:00:04.3]} 35... hxg2+ {[%clk 0:00:29.8]} 36.
Kg1 {[%clk 0:00:04.3]} 36... Qc3 {[%clk 0:00:19]} 37. Re7+ {[%clk 0:00:04.4]}
37... Kf8 {[%clk 0:00:19.4]} 38. Rf7+ {[%clk 0:00:05]} 38... Ke8 {[%clk
0:00:19.8]} 39. Rce7+ {[%clk 0:00:05.8]} 39... Kd8 {[%clk 0:00:19.8]} 40. Rd7+
{[%clk 0:00:06.4]} 40... Ke8 {[%clk 0:00:20.2]} 41. Rfe7+ {[%clk 0:00:06.9]}
41... Kf8 {[%clk 0:00:20.6]} 42. Rf7+ {[%clk 0:00:07.5]} 42... Ke8 {[%clk
0:00:21.2]} 43. Rde7+ {[%clk 0:00:08.4]} 43... Kd8 {[%clk 0:00:21.7]} 44. Bb6+
{[%clk 0:00:06.3]} 44... Kc8 {[%clk 0:00:20]} 45. Rc7+ {[%clk 0:00:07]} 45...
Kb8 {[%clk 0:00:17]} 46. Rxb7+ {[%clk 0:00:07.9]} 46... Ka8 {[%clk 0:00:16.6]}
47. Ra7+ {[%clk 0:00:07.9]} 47... Kb8 {[%clk 0:00:17.5]} 48. Rfb7+ {[%clk
0:00:07.7]} 48... Kc8 {[%clk 0:00:18]} 49. Rc7+ {[%clk 0:00:08.5]} 49... Kb8
{[%clk 0:00:18.7]} 50. Qf2 {[%clk 0:00:04.5]} 50... h3 {[%clk 0:00:15.9]} 51.
Rab7+ {[%clk 0:00:04.8]} 51... Ka8 {[%clk 0:00:16]} 52. Ra7+ {[%clk 0:00:05.4]}
52... Kb8 {[%clk 0:00:16.6]} 53. Rcb7+ {[%clk 0:00:06]} 53... Kc8 {[%clk
0:00:17]} 54. Rc7+ {[%clk 0:00:06.7]} 54... Kb8 {[%clk 0:00:17.3]} 1/2-1/2

[Event "Late-Titled-Tuesday-Blitz-March-19-2024"]
[Site "Chess.com"]
[Date "2024.03.19"]
[Round "8"]
[White "HajiyevKanan"]
[Black "xasid81"]
[Result "1-0"]
[WhiteElo "2525"]
[BlackElo "2591"]
[TimeControl "180+1"]
[EndTime "15:27:58 PDT"]
[Termination "HajiyevKanan won by resignation"]

1. d4 {[%clk 0:03:00.9]} 1... d5 {[%clk 0:03:00.9]} 2. c4 {[%clk 0:03:00.7]}
2... e6 {[%clk 0:03:01]} 3. cxd5 {[%clk 0:03:01.3]} 3... exd5 {[%clk 0:03:01.9]}
4. Nc3 {[%clk 0:03:02]} 4... Nf6 {[%clk 0:03:02.5]} 5. Qc2 {[%clk 0:03:02.6]}
5... a6 {[%clk 0:03:02.5]} 6. Nf3 {[%clk 0:03:01.9]} 6... c5 {[%clk 0:03:03.1]}
7. Bg5 {[%clk 0:03:01.5]} 7... Nc6 {[%clk 0:02:59.3]} 8. e3 {[%clk 0:03:01.3]}
8... c4 {[%clk 0:02:57.4]} 9. a4 {[%clk 0:03:00.8]} 9... Be7 {[%clk 0:02:56.6]}
10. Be2 {[%clk 0:03:00.3]} 10... Bg4 {[%clk 0:02:52.4]} 11. Ne5 {[%clk
0:02:54.2]} 11... Bxe2 {[%clk 0:02:44.8]} 12. Qxe2 {[%clk 0:02:31.2]} 12... O-O
{[%clk 0:02:38.8]} 13. O-O {[%clk 0:02:30.6]} 13... Rc8 {[%clk 0:02:26.7]} 14.
f4 {[%clk 0:02:30.1]} 14... h6 {[%clk 0:02:19.5]} 15. Bh4 {[%clk 0:02:27.4]}
15... Nh7 {[%clk 0:02:11.1]} 16. Bf2 {[%clk 0:02:08]} 16... Bb4 {[%clk
0:01:59.8]} 17. Qf3 {[%clk 0:02:06.7]} 17... Nxe5 {[%clk 0:01:47.2]} 18. dxe5
{[%clk 0:02:01.8]} 18... Bxc3 {[%clk 0:01:45.7]} 19. bxc3 {[%clk 0:02:01.4]}
19... Qa5 {[%clk 0:01:42.5]} 20. e4 {[%clk 0:01:44]} 20... dxe4 {[%clk
0:01:39.1]} 21. Qxe4 {[%clk 0:01:44.9]} 21... Qxc3 {[%clk 0:01:28.7]} 22. Bd4
{[%clk 0:01:43.9]} 22... Qd3 {[%clk 0:01:14.6]} 23. Qxd3 {[%clk 0:01:41.3]}
23... cxd3 {[%clk 0:01:15.5]} 24. Rfd1 {[%clk 0:01:39.4]} 24... Rfd8 {[%clk
0:01:13.4]} 25. Rxd3 {[%clk 0:01:39.3]} 25... Rc4 {[%clk 0:01:12]} 26. Rad1
{[%clk 0:01:36.4]} 26... Rxa4 {[%clk 0:00:53]} 27. Bb6 {[%clk 0:01:36.1]} 27...
Rxd3 {[%clk 0:00:52.3]} 28. Rxd3 {[%clk 0:01:37]} 28... Nf8 {[%clk 0:00:50.9]}
29. Rd8 {[%clk 0:01:36]} 29... Rc4 {[%clk 0:00:32.5]} 30. f5 {[%clk 0:01:36.3]}
30... Rc6 {[%clk 0:00:26.2]} 31. Ba5 {[%clk 0:01:34.6]} 31... Rc4 {[%clk
0:00:22.9]} 32. e6 {[%clk 0:01:29.9]} 32... fxe6 {[%clk 0:00:18.9]} 33. fxe6
{[%clk 0:01:30.8]} 33... Re4 {[%clk 0:00:19.3]} 34. Bb4 {[%clk 0:01:19.8]} 34...
Rxe6 {[%clk 0:00:19.3]} 35. Rxf8+ {[%clk 0:01:17.2]} 35... Kh7 {[%clk
0:00:19.7]} 36. Rb8 {[%clk 0:01:17.8]} 36... b5 {[%clk 0:00:19.9]} 37. Rb7
{[%clk 0:01:15.3]} 37... Rc6 {[%clk 0:00:18.8]} 38. Bf8 {[%clk 0:01:14.1]} 38...
Rg6 {[%clk 0:00:18.1]} 39. h4 {[%clk 0:01:13.7]} 39... Kg8 {[%clk 0:00:18.4]}
40. Bc5 {[%clk 0:01:10.9]} 40... h5 {[%clk 0:00:18]} 41. Rb6 {[%clk 0:01:03]}
41... Rxb6 {[%clk 0:00:17.7]} 42. Bxb6 {[%clk 0:01:03.4]} 42... Kf7 {[%clk
0:00:18.4]} 43. Kf2 {[%clk 0:01:01.3]} 43... Ke6 {[%clk 0:00:18.6]} 44. Ke3
{[%clk 0:00:58.2]} 44... Kd5 {[%clk 0:00:18.8]} 45. Kd3 {[%clk 0:00:58.5]} 45...
g6 {[%clk 0:00:16.7]} 46. Kc3 {[%clk 0:00:48.3]} 46... Kc6 {[%clk 0:00:13.8]}
47. Be3 {[%clk 0:00:43.8]} 47... a5 {[%clk 0:00:14.1]} 48. g3 {[%clk 0:00:35.7]}
48... Kb7 {[%clk 0:00:12.9]} 49. Kd4 {[%clk 0:00:31.3]} 49... Kc6 {[%clk
0:00:13.1]} 50. Bd2 {[%clk 0:00:31.2]} 50... Kb6 {[%clk 0:00:12.4]} 51. Kd5
{[%clk 0:00:27.7]} 51... b4 {[%clk 0:00:11.6]} 52. Kc4 {[%clk 0:00:28]} 52...
Kc6 {[%clk 0:00:11.1]} 53. Be3 {[%clk 0:00:27]} 53... Kb7 {[%clk 0:00:05]} 54.
Kb5 {[%clk 0:00:25.6]} 54... b3 {[%clk 0:00:05.5]} 55. Bd4 {[%clk 0:00:26.2]}
55... a4 {[%clk 0:00:05.4]} 56. Kxa4 {[%clk 0:00:26.4]} 56... Kc6 {[%clk
0:00:06.3]} 57. Kxb3 {[%clk 0:00:26.8]} 57... Kd5 {[%clk 0:00:07.2]} 58. Be3
{[%clk 0:00:26.7]} 1-0

[Event "Late-Titled-Tuesday-Blitz-March-19-2024"]
[Site "Chess.com"]
[Date "2024.03.19"]
[Round "8"]
[White "BebeBonito2022"]
[Black "Oligan22"]
[Result "1-0"]
[WhiteElo "2302"]
[BlackElo "2357"]
[TimeControl "180+1"]
[EndTime "15:27:59 PDT"]
[Termination "BebeBonito2022 won on time"]

1. d4 {[%clk 0:03:00.9]} 1... Nf6 {[%clk 0:02:57.9]} 2. c4 {[%clk 0:03:01]} 2...
g6 {[%clk 0:02:56.1]} 3. Nc3 {[%clk 0:03:01]} 3... Bg7 {[%clk 0:02:56.3]} 4. e4
{[%clk 0:03:01.3]} 4... d6 {[%clk 0:02:56.9]} 5. Nf3 {[%clk 0:03:01.7]} 5... O-O
{[%clk 0:02:57.4]} 6. h3 {[%clk 0:03:02.3]} 6... Nc6 {[%clk 0:02:54.5]} 7. d5
{[%clk 0:03:02.4]} 7... Nb8 {[%clk 0:02:47.2]} 8. Bg5 {[%clk 0:03:02.2]} 8...
Nbd7 {[%clk 0:02:46.5]} 9. Be2 {[%clk 0:02:57.1]} 9... c6 {[%clk 0:02:41.6]} 10.
Qd2 {[%clk 0:02:54.7]} 10... Qa5 {[%clk 0:02:41]} 11. O-O {[%clk 0:02:53.3]}
11... Nc5 {[%clk 0:02:35.6]} 12. a3 {[%clk 0:02:42.5]} 12... Nb3 {[%clk
0:02:34.8]} 13. Qc2 {[%clk 0:02:38.7]} 13... Nxa1 {[%clk 0:02:35]} 14. Rxa1
{[%clk 0:02:39.6]} 14... Qc7 {[%clk 0:02:31.1]} 15. Rd1 {[%clk 0:02:32.1]} 15...
Re8 {[%clk 0:02:30.5]} 16. Bf4 {[%clk 0:02:27.7]} 16... Nd7 {[%clk 0:02:29.8]}
17. b4 {[%clk 0:02:22.1]} 17... a5 {[%clk 0:02:29.7]} 18. c5 {[%clk 0:02:22.6]}
18... axb4 {[%clk 0:02:27.2]} 19. axb4 {[%clk 0:02:23.2]} 19... Ne5 {[%clk
0:02:22.8]} 20. Nxe5 {[%clk 0:02:12.5]} 20... Bxe5 {[%clk 0:02:22.7]} 21. Bxe5
{[%clk 0:02:10.8]} 21... dxe5 {[%clk 0:02:23.6]} 22. Bc4 {[%clk 0:02:04.8]}
22... b6 {[%clk 0:02:04.2]} 23. dxc6 {[%clk 0:01:59]} 23... bxc5 {[%clk
0:02:04.5]} 24. b5 {[%clk 0:01:59]} 24... Ra3 {[%clk 0:01:57.6]} 25. Nd5 {[%clk
0:01:53.4]} 25... Qd6 {[%clk 0:01:49]} 26. Qb2 {[%clk 0:01:28.9]} 26... Ra4
{[%clk 0:01:48.4]} 27. Bb3 {[%clk 0:01:26.4]} 27... Rd4 {[%clk 0:01:48]} 28.
Rxd4 {[%clk 0:01:14.4]} 28... exd4 {[%clk 0:01:48.9]} 29. f4 {[%clk 0:01:07.4]}
29... e5 {[%clk 0:00:39.1]} 30. Ba4 {[%clk 0:00:20.4]} 30... exf4 {[%clk
0:00:21.5]} 31. b6 {[%clk 0:00:20.9]} 31... f3 {[%clk 0:00:20.5]} 32. b7 {[%clk
0:00:16.9]} 32... Bxh3 {[%clk 0:00:20.5]} 33. c7 {[%clk 0:00:14.9]} 33... Qg3
{[%clk 0:00:16.9]} 34. b8=Q {[%clk 0:00:12.1]} 34... Bc8 {[%clk 0:00:09.8]} 35.
Qf2 {[%clk 0:00:10.2]} 35... Qg5 {[%clk 0:00:08.8]} 36. Qxf3 {[%clk 0:00:09.3]}
36... Qc1+ {[%clk 0:00:08.9]} 37. Kh2 {[%clk 0:00:09.4]} 37... Qh6+ {[%clk
0:00:09]} 38. Kg3 {[%clk 0:00:06.9]} 38... Qg5+ {[%clk 0:00:08.4]} 39. Kf2
{[%clk 0:00:07.2]} 39... Qd2+ {[%clk 0:00:08.5]} 40. Qe2 {[%clk 0:00:07.6]}
40... Qg5 {[%clk 0:00:06.4]} 41. Bxe8 {[%clk 0:00:04.7]} 41... Qh4+ {[%clk
0:00:06.9]} 42. Kg1 {[%clk 0:00:04.5]} 42... Bg4 {[%clk 0:00:03.6]} 43. Bxf7+
{[%clk 0:00:04.3]} 43... Kg7 {[%clk 0:00:01.5]} 44. Qf2 {[%clk 0:00:04]} 1-0